[Event "NJSK 2023 Jeugd C"]
[Site "Almelo, Netherlands"]
[Date "2023.05.01"]
[Round "2.8"]
[White "Kazarjan, Gachatur"]
[Black "Vijver, Jonathan"]
[Result "1-0"]
[TimeControl "90min/40moves + 30min + 30sec/move"]
[WhiteElo "1872"]
[BlackElo "1781"]

1. e4 {[%clk 01:30:57]} {[%emt 00:00:01]} e6 {[%clk 01:30:39]} {[%emt
00:00:22]} 2. d4 {[%clk 01:31:23]} {[%emt 00:00:04]} d5 {[%clk 01:31:02]}
{[%emt 00:00:07]} 3. exd5 {[%clk 01:31:44]} {[%emt 00:00:10]} exd5 {[%clk
01:31:25]} {[%emt 00:00:07]} 4. c4 {[%clk 01:32:10]} {[%emt 00:00:04]} Nf6
{[%clk 01:31:34]} {[%emt 00:00:21]} 5. Nc3 {[%clk 01:32:32]} {[%emt 00:00:08]}
Bf5 {[%clk 01:30:30]} {[%emt 00:01:34]} 6. Qb3 {[%clk 01:31:45]} {[%emt
00:01:17]} c6 {[%clk 01:17:54]} {[%emt 00:13:06]} 7. Qxb7 {[%clk 01:29:55]}
{[%emt 00:02:19]} Qe7+ {[%clk 01:15:18]} {[%emt 00:03:06]} 8. Qxe7+ {[%clk
01:30:17]} {[%emt 00:00:08]} Bxe7 {[%clk 01:15:41]} {[%emt 00:00:07]} 9. Nf3
{[%clk 01:29:13]} {[%emt 00:01:34]} O-O {[%clk 01:12:31]} {[%emt 00:03:40]} 10.
Be2 {[%clk 01:23:06]} {[%emt 00:06:39]} h6 {[%clk 01:04:11]} {[%emt 00:08:48]}
11. O-O {[%clk 01:22:56]} {[%emt 00:00:40]} Nbd7 {[%clk 00:39:46]} {[%emt
00:24:55]} 12. cxd5 {[%clk 00:59:55]} {[%emt 00:23:33]} cxd5 {[%clk 00:37:24]}
{[%emt 00:02:50]} 13. Bb5 {[%clk 00:58:56]} {[%emt 00:01:29]} Nb6 {[%clk
00:37:20]} {[%emt 00:00:32]} 14. a4 {[%clk 00:49:14]} {[%emt 00:10:15]} Ne4
{[%clk 00:31:20]} {[%emt 00:06:30]} 15. a5 {[%clk 00:26:26]} {[%emt 00:23:17]}
Nxc3 {[%clk 00:30:06]} {[%emt 00:01:44]} 16. bxc3 {[%clk 00:26:41]} {[%emt
00:00:15]} Nc4 {[%clk 00:26:06]} {[%emt 00:04:30]} 17. Bxc4 {[%clk 00:25:22]}
{[%emt 00:01:50]} dxc4 {[%clk 00:26:30]} {[%emt 00:00:05]} 18. Bf4 {[%clk
00:25:17]} {[%emt 00:00:35]} Bf6 {[%clk 00:23:03]} {[%emt 00:03:57]} 19. Ra4
{[%clk 00:17:18]} {[%emt 00:08:30]} Rfe8 {[%clk 00:19:59]} {[%emt 00:03:32]} 20.
Rc1 {[%clk 00:08:54]} {[%emt 00:08:56]} Rac8 {[%clk 00:16:35]} {[%emt
00:03:53]} 21. Nd2 {[%clk 00:08:53]} {[%emt 00:00:31]} Bd3 {[%clk 00:16:36]}
{[%emt 00:00:28]} 22. Nf1 {[%clk 00:09:01]} {[%emt 00:00:23]} Re4 {[%clk
00:16:14]} {[%emt 00:00:52]} 23. g3 {[%clk 00:07:46]} {[%emt 00:01:45]} g5
{[%clk 00:11:26]} {[%emt 00:05:19]} 24. Bd6 {[%clk 00:07:06]} {[%emt 00:01:09]}
g4 {[%clk 00:08:51]} {[%emt 00:03:04]} 25. Bf4 {[%clk 00:06:58]} {[%emt
00:00:39]} Kh7 {[%clk 00:08:10]} {[%emt 00:01:10]} 26. Ne3 {[%clk 00:07:07]}
{[%emt 00:00:23]} h5 {[%clk 00:07:43]} {[%emt 00:00:56]} 27. Rb4 {[%clk
00:07:07]} {[%emt 00:00:30]} Be7 {[%clk 00:07:06]} {[%emt 00:01:07]} 28. Rb7
{[%clk 00:07:07]} {[%emt 00:00:30]} Kg6 {[%clk 00:06:50]} {[%emt 00:00:47]} 29.
Ra1 {[%clk 00:05:01]} {[%emt 00:02:35]} Ra8 {[%clk 00:06:05]} {[%emt 00:01:14]}
30. Rc7 {[%clk 00:04:22]} {[%emt 00:01:11]} Bg5 {[%clk 00:05:18]} {[%emt
00:01:16]} 31. Bxg5 {[%clk 00:04:17]} {[%emt 00:00:35]} Kxg5 {[%clk 00:05:41]}
{[%emt 00:00:08]} 32. Rxf7 {[%clk 00:04:04]} {[%emt 00:00:43]} a6 {[%clk
00:05:59]} {[%emt 00:00:11]} 33. Rc7 {[%clk 00:04:24]} {[%emt 00:00:10]} Rf8
{[%clk 00:05:48]} {[%emt 00:00:41]} 34. Rc6 {[%clk 00:04:26]} {[%emt 00:00:27]}
h4 {[%clk 00:06:00]} {[%emt 00:00:18]} 35. Rxa6 {[%clk 00:04:10]} {[%emt
00:00:47]} hxg3 {[%clk 00:06:25]} {[%emt 00:00:05]} 36. hxg3 {[%clk 00:04:33]}
{[%emt 00:00:07]} Rh8 {[%clk 00:06:30]} {[%emt 00:00:25]} 37. Rb6 {[%clk
00:04:38]} {[%emt 00:00:25]} Rxe3 {[%clk 00:06:24]} {[%emt 00:00:36]} 38. fxe3
{[%clk 00:04:54]} {[%emt 00:00:14]} Be4 {[%clk 00:06:50]} {[%emt 00:00:04]} 39.
Rf1 {[%clk 00:03:49]} {[%emt 00:01:34]} Rh1+ {[%clk 00:06:58]} {[%emt
00:00:22]} 40. Kf2 {[%clk 00:04:15]} {[%emt 00:00:04]} Rh2+ {[%clk 00:07:16]}
{[%emt 00:00:12]} 41. Ke1 {[%clk 00:04:41]} {[%emt 00:00:04]} Ra2 {[%clk
00:07:36]} {[%emt 00:00:10]} 42. Rf4 {[%clk 00:04:51]} {[%emt 00:00:20]} Bd3
{[%clk 00:07:35]} {[%emt 00:00:31]} 43. d5 {[%clk 00:03:31]} {[%emt 00:01:51]}
Rxa5 {[%clk 00:07:44]} {[%emt 00:00:20]} 44. e4 {[%clk 00:03:36]} {[%emt
00:00:25]} Ra2 {[%clk 00:07:03]} {[%emt 00:01:12]} 45. Rf5# {[%emt 00:00:39]}
1-0

[Event "NJSK 2023 Jeugd C"]
[Site "Almelo, Netherlands"]
[Date "2023.05.01"]
[Round "2.9"]
[White "Fallaux, Storm"]
[Black "Lopes, Samuel"]
[Result "1/2-1/2"]
[TimeControl "90min/40moves + 30min + 30sec/move"]
[WhiteElo "1650"]
[BlackElo "1865"]

1. e4 {[%clk 01:30:58]} {[%emt 00:00:01]} c5 {[%clk 01:30:47]} {[%emt
00:00:13]} 2. Nf3 {[%clk 01:31:24]} {[%emt 00:00:04]} d6 {[%clk 01:31:09]}
{[%emt 00:00:09]} 3. d4 {[%clk 01:31:49]} {[%emt 00:00:04]} cxd4 {[%clk
01:31:33]} {[%emt 00:00:06]} 4. Nxd4 {[%clk 01:32:15]} {[%emt 00:00:04]} Nf6
{[%clk 01:31:51]} {[%emt 00:00:12]} 5. Nc3 {[%clk 01:32:42]} {[%emt 00:00:04]}
Nc6 {[%clk 01:32:06]} {[%emt 00:00:15]} 6. g3 {[%clk 01:32:42]} {[%emt
00:00:30]} g6 {[%clk 01:32:21]} {[%emt 00:00:14]} 7. Bg2 {[%clk 01:32:44]}
{[%emt 00:00:28]} Nxd4 {[%clk 01:32:38]} {[%emt 00:00:14]} 8. Qxd4 {[%clk
01:33:08]} {[%emt 00:00:06]} Bg7 {[%clk 01:32:58]} {[%emt 00:00:10]} 9. Qd3
{[%clk 01:32:29]} {[%emt 00:01:09]} O-O {[%clk 01:32:59]} {[%emt 00:00:30]} 10.
O-O {[%clk 01:32:43]} {[%emt 00:00:16]} Bd7 {[%clk 01:28:29]} {[%emt 00:05:00]}
11. Be3 {[%clk 01:24:18]} {[%emt 00:08:55]} Ng4 {[%clk 01:14:04]} {[%emt
00:14:55]} 12. Bf4 {[%clk 01:24:14]} {[%emt 00:00:34]} Bc6 {[%clk 01:12:54]}
{[%emt 00:01:40]} 13. Rad1 {[%clk 01:17:43]} {[%emt 00:07:00]} Qa5 {[%clk
01:07:32]} {[%emt 00:05:53]} 14. Bd2 {[%clk 01:13:46]} {[%emt 00:04:27]} Qh5
{[%clk 00:57:18]} {[%emt 00:10:43]} 15. h4 {[%clk 01:10:50]} {[%emt 00:03:26]}
Ne5 {[%clk 00:55:11]} {[%emt 00:02:37]} 16. Qe2 {[%clk 01:10:04]} {[%emt
00:01:17]} Qxe2 {[%clk 00:54:12]} {[%emt 00:01:29]} 17. Nxe2 {[%clk 01:10:29]}
{[%emt 00:00:05]} Bb5 {[%clk 00:42:20]} {[%emt 00:12:22]} 18. Rfe1 {[%clk
01:09:42]} {[%emt 00:01:16]} Bxe2 {[%clk 00:42:12]} {[%emt 00:00:38]} 19. Rxe2
{[%clk 01:10:04]} {[%emt 00:00:08]} Nc4 {[%clk 00:42:25]} {[%emt 00:00:17]} 20.
b3 {[%clk 01:10:16]} {[%emt 00:00:19]} Nxd2 {[%clk 00:42:26]} {[%emt 00:00:29]}
21. Rexd2 {[%clk 01:09:50]} {[%emt 00:00:55]} Rab8 {[%clk 00:41:58]} {[%emt
00:01:00]} 22. c4 {[%clk 01:09:04]} {[%emt 00:01:16]} Rfc8 {[%clk 00:41:41]}
{[%emt 00:00:46]} 23. Rd5 {[%clk 01:06:40]} {[%emt 00:02:54]} b6 {[%clk
00:38:25]} {[%emt 00:03:46]} 24. f4 {[%clk 01:05:31]} {[%emt 00:01:39]} Kf8
{[%clk 00:35:06]} {[%emt 00:03:49]} 25. Bh3 {[%clk 01:04:46]} {[%emt 00:01:15]}
Rc5 {[%clk 00:29:13]} {[%emt 00:06:22]} 26. Kf2 {[%clk 01:03:22]} {[%emt
00:01:56]} Rxd5 {[%clk 00:28:19]} {[%emt 00:01:24]} 27. cxd5 {[%clk 01:00:35]}
{[%emt 00:03:16]} Ke8 {[%clk 00:28:22]} {[%emt 00:00:27]} 28. Ke3 {[%clk
00:58:44]} {[%emt 00:02:21]} Kd8 {[%clk 00:25:46]} {[%emt 00:03:06]} 29. Rc1
{[%clk 00:56:34]} {[%emt 00:02:40]} Bb2 {[%clk 00:24:48]} {[%emt 00:01:28]} 30.
Rc4 {[%clk 00:55:09]} {[%emt 00:01:55]} Ba3 {[%clk 00:23:13]} {[%emt 00:02:04]}
31. Ke2 {[%clk 00:54:12]} {[%emt 00:01:27]} Bc5 {[%clk 00:21:40]} {[%emt
00:02:03]} 32. a4 {[%clk 00:54:12]} {[%emt 00:00:30]} b5 {[%clk 00:20:32]}
{[%emt 00:01:39]} 33. axb5 {[%clk 00:51:24]} {[%emt 00:03:18]} 1/2-1/2

[Event "NJSK 2023 Jeugd C"]
[Site "Almelo, Netherlands"]
[Date "2023.05.01"]
[Round "2.10"]
[White "Van Batenburg, Mees"]
[Black "Thijssen, Freek"]
[Result "1/2-1/2"]
[TimeControl "90min/40moves + 30min + 30sec/move"]
[WhiteElo "2054"]
[BlackElo "1644"]

1. e4 {[%clk 01:30:57]} {[%emt 00:00:02]} e5 {[%clk 01:30:56]} {[%emt
00:00:05]} 2. Nf3 {[%clk 01:31:24]} {[%emt 00:00:03]} Nc6 {[%clk 01:31:20]}
{[%emt 00:00:05]} 3. d4 {[%clk 01:31:50]} {[%emt 00:00:04]} exd4 {[%clk
01:31:45]} {[%emt 00:00:05]} 4. Nxd4 {[%clk 01:32:17]} {[%emt 00:00:03]} Bc5
{[%clk 01:32:02]} {[%emt 00:00:12]} 5. Nb3 {[%clk 01:32:45]} {[%emt 00:00:03]}
Bb6 {[%clk 01:32:18]} {[%emt 00:00:15]} 6. Nc3 {[%clk 01:33:09]} {[%emt
00:00:05]} d6 {[%clk 01:31:27]} {[%emt 00:01:22]} 7. Qe2 {[%clk 01:33:34]}
{[%emt 00:00:05]} Nge7 {[%clk 01:26:02]} {[%emt 00:05:55]} 8. Be3 {[%clk
01:33:50]} {[%emt 00:00:13]} O-O {[%clk 01:22:05]} {[%emt 00:04:28]} 9. O-O-O
{[%clk 01:30:40]} {[%emt 00:03:39]} Be6 {[%clk 01:16:33]} {[%emt 00:06:02]} 10.
f4 {[%clk 01:20:52]} {[%emt 00:10:18]} Bxe3+ {[%clk 00:57:50]} {[%emt
00:19:12]} 11. Qxe3 {[%clk 01:18:51]} {[%emt 00:02:31]} a5 {[%clk 00:57:53]}
{[%emt 00:00:28]} 12. a4 {[%clk 01:13:18]} {[%emt 00:06:03]} Bxb3 {[%clk
00:51:45]} {[%emt 00:06:39]} 13. cxb3 {[%clk 01:12:03]} {[%emt 00:01:44]} Nb4
{[%clk 00:49:31]} {[%emt 00:02:44]} 14. Bc4 {[%clk 01:01:45]} {[%emt 00:10:48]}
Re8 {[%clk 00:40:55]} {[%emt 00:09:07]} 15. Rhe1 {[%clk 00:55:43]} {[%emt
00:06:31]} Qd7 {[%clk 00:28:24]} {[%emt 00:13:01]} 16. Qd2 {[%clk 00:46:56]}
{[%emt 00:09:16]} Rad8 {[%clk 00:27:47]} {[%emt 00:01:08]} 17. f5 {[%clk
00:34:51]} {[%emt 00:12:35]} d5 {[%clk 00:17:33]} {[%emt 00:10:44]} 18. Qg5
{[%clk 00:28:17]} {[%emt 00:07:04]} f6 {[%clk 00:12:39]} {[%emt 00:05:23]} 19.
Qf4 {[%clk 00:23:53]} {[%emt 00:04:54]} c6 {[%clk 00:12:06]} {[%emt 00:01:04]}
20. exd5 {[%clk 00:20:49]} {[%emt 00:03:34]} Nexd5 {[%clk 00:11:04]} {[%emt
00:01:32]} 21. Rxe8+ {[%emt 00:08:20]} Rxe8 {[%clk 00:10:57]} {[%emt 00:00:36]}
22. Qf3 {[%clk 00:12:04]} {[%emt 00:01:26]} Re5 {[%clk 00:09:45]} {[%emt
00:01:43]} 23. g4 {[%clk 00:10:58]} {[%emt 00:01:36]} Kf8 {[%clk 00:08:36]}
{[%emt 00:01:39]} 1/2-1/2

[Event "NJSK 2023 Jeugd C"]
[Site "Almelo, Netherlands"]
[Date "2023.05.01"]
[Round "2.11"]
[White "Ten Kate, Gustav"]
[Black "Verwer, Oscar"]
[Result "1-0"]
[TimeControl "90min/40moves + 30min + 30sec/move"]
[WhiteElo "1815"]
[BlackElo "1549"]

1. e4 {[%clk 01:29:39]} {[%emt 00:01:20]} c5 {[%clk 01:30:55]} {[%emt
00:00:06]} 2. c4 {[%clk 01:29:54]} {[%emt 00:00:16]} Nc6 {[%clk 01:31:05]}
{[%emt 00:00:20]} 3. Nf3 {[%clk 01:30:08]} {[%emt 00:00:14]} e5 {[%clk
01:30:52]} {[%emt 00:00:44]} 4. Nc3 {[%clk 01:27:59]} {[%emt 00:02:38]} d6
{[%clk 01:30:24]} {[%emt 00:00:59]} 5. Be2 {[%clk 01:27:17]} {[%emt 00:01:11]}
Be6 {[%clk 01:28:51]} {[%emt 00:02:04]} 6. d3 {[%clk 01:27:39]} {[%emt
00:00:08]} Be7 {[%clk 01:27:07]} {[%emt 00:02:14]} 7. O-O {[%clk 01:27:53]}
{[%emt 00:00:16]} Qd7 {[%clk 01:25:27]} {[%emt 00:02:10]} 8. a3 {[%clk
01:27:46]} {[%emt 00:00:37]} Nh6 {[%clk 01:19:42]} {[%emt 00:06:16]} 9. Rb1
{[%clk 01:20:04]} {[%emt 00:08:11]} f5 {[%clk 01:12:30]} {[%emt 00:07:42]} 10.
b4 {[%clk 01:07:47]} {[%emt 00:12:47]} b6 {[%clk 01:09:20]} {[%emt 00:03:40]}
11. Nd5 {[%clk 00:53:15]} {[%emt 00:15:02]} f4 {[%clk 01:01:31]} {[%emt
00:08:19]} 12. Qa4 {[%clk 00:46:56]} {[%emt 00:06:49]} O-O {[%clk 00:58:07]}
{[%emt 00:03:54]} 13. Re1 {[%clk 00:35:35]} {[%emt 00:11:51]} Kh8 {[%clk
00:54:44]} {[%emt 00:03:53]} 14. Bd1 {[%clk 00:28:11]} {[%emt 00:07:54]} Bf6
{[%clk 00:45:00]} {[%emt 00:10:14]} 15. Qb5 {[%clk 00:17:58]} {[%emt 00:10:43]}
Nd4 {[%clk 00:28:10]} {[%emt 00:17:20]} 16. Nxd4 {[%clk 00:17:53]} {[%emt
00:00:36]} cxd4 {[%clk 00:28:16]} {[%emt 00:00:24]} 17. Qxd7 {[%clk 00:16:08]}
{[%emt 00:02:14]} Bxd7 {[%clk 00:28:23]} {[%emt 00:00:23]} 18. b5 {[%clk
00:12:37]} {[%emt 00:04:02]} g5 {[%clk 00:26:02]} {[%emt 00:02:51]} 19. a4
{[%clk 00:11:06]} {[%emt 00:02:01]} Bd8 {[%clk 00:25:26]} {[%emt 00:01:03]} 20.
Ba3 {[%clk 00:10:43]} {[%emt 00:00:49]} Rg8 {[%clk 00:20:23]} {[%emt 00:05:40]}
21. Bxd6 {[%clk 00:10:52]} {[%emt 00:00:21]} Nf7 {[%clk 00:19:49]} {[%emt
00:01:03]} 22. Bb4 {[%clk 00:09:58]} {[%emt 00:01:24]} g4 {[%clk 00:17:34]}
{[%emt 00:02:45]} 23. Bb3 {[%clk 00:08:54]} {[%emt 00:01:34]} h5 {[%clk
00:16:37]} {[%emt 00:01:28]} 24. c5 {[%clk 00:08:06]} {[%emt 00:01:18]} bxc5
{[%clk 00:14:27]} {[%emt 00:02:40]} 25. Bxc5 {[%clk 00:08:30]} {[%emt
00:00:06]} Ng5 {[%clk 00:12:34]} {[%emt 00:02:23]} 26. Bd6 {[%clk 00:06:11]}
{[%emt 00:02:50]} Nf7 {[%clk 00:10:41]} {[%emt 00:02:23]} 27. Bb4 {[%clk
00:06:40]} {[%emt 00:00:02]} Ng5 {[%clk 00:10:29]} {[%emt 00:00:41]} 28. Rec1
{[%clk 00:06:05]} {[%emt 00:01:05]} g3 {[%clk 00:06:44]} {[%emt 00:04:14]} 29.
Nc7 {[%clk 00:03:38]} {[%emt 00:02:58]} Rc8 {[%clk 00:04:09]} {[%emt 00:03:06]}
30. Bxg8 {[%clk 00:03:56]} {[%emt 00:00:11]} Kxg8 {[%clk 00:04:00]} {[%emt
00:00:38]} 31. Nd5 {[%clk 00:04:09]} {[%emt 00:00:18]} h4 {[%clk 00:03:11]}
{[%emt 00:01:19]} 32. Rxc8 {[%clk 00:04:24]} {[%emt 00:00:14]} Bxc8 {[%clk
00:03:34]} {[%emt 00:00:07]} 33. Be7 {[%clk 00:04:14]} {[%emt 00:00:41]} gxh2+
{[%clk 00:01:24]} {[%emt 00:02:39]} 34. Kxh2 {[%clk 00:04:13]} {[%emt
00:00:32]} Nf7 {[%clk 00:01:42]} {[%emt 00:00:12]} 35. Bxd8 {[%clk 00:04:36]}
{[%emt 00:00:07]} Nxd8 {[%clk 00:02:07]} {[%emt 00:00:05]} 36. Ne7+ {[%clk
00:04:59]} {[%emt 00:00:06]} 1-0

[Event "NJSK 2023 Jeugd C"]
[Site "Almelo, Netherlands"]
[Date "2023.05.01"]
[Round "2.12"]
[White "Chua, Ethan"]
[Black "Klein Tuente, Sam"]
[Result "1-0"]
[TimeControl "90min/40moves + 30min + 30sec/move"]
[WhiteElo "1776"]
[BlackElo "1478"]

1. e4 {[%clk 01:30:58]} {[%emt 00:00:02]} c5 {[%clk 01:30:54]} {[%emt
00:00:07]} 2. Nf3 {[%clk 01:31:24]} {[%emt 00:00:04]} Nc6 {[%clk 01:30:13]}
{[%emt 00:01:11]} 3. d4 {[%clk 01:31:49]} {[%emt 00:00:05]} cxd4 {[%clk
01:30:35]} {[%emt 00:00:08]} 4. Nxd4 {[%clk 01:32:16]} {[%emt 00:00:02]} Nf6
{[%clk 01:30:29]} {[%emt 00:00:37]} 5. Nc3 {[%clk 01:32:41]} {[%emt 00:00:05]}
e6 {[%clk 01:28:25]} {[%emt 00:02:33]} 6. Be3 {[%clk 01:23:56]} {[%emt
00:09:14]} Bb4 {[%clk 01:27:30]} {[%emt 00:01:25]} 7. Nxc6 {[%clk 01:21:35]}
{[%emt 00:02:50]} bxc6 {[%clk 01:23:27]} {[%emt 00:04:36]} 8. Bd3 {[%clk
01:17:21]} {[%emt 00:04:43]} d5 {[%clk 01:21:19]} {[%emt 00:02:39]} 9. exd5
{[%clk 01:15:00]} {[%emt 00:02:50]} exd5 {[%clk 01:08:23]} {[%emt 00:13:26]} 10.
a3 {[%clk 01:09:15]} {[%emt 00:06:16]} Ba5 {[%clk 01:02:44]} {[%emt 00:06:06]}
11. Bc5 {[%clk 01:05:41]} {[%emt 00:04:06]} Bb6 {[%clk 00:59:12]} {[%emt
00:04:02]} 12. Qe2+ {[%clk 01:01:58]} {[%emt 00:04:13]} Be6 {[%clk 00:57:59]}
{[%emt 00:01:44]} 13. Na4 {[%clk 01:00:51]} {[%emt 00:01:37]} Bxc5 {[%clk
00:54:19]} {[%emt 00:04:09]} 14. Nxc5 {[%clk 01:01:08]} {[%emt 00:00:13]} Qe7
{[%emt 00:03:50]} 15. b4 {[%clk 00:59:05]} Nd7 {[%clk 00:50:22]} {[%emt
00:03:40]} 16. Nb3 {[%clk 00:57:46]} {[%emt 00:01:49]} O-O {[%clk 00:47:03]}
{[%emt 00:03:50]} 17. O-O {[%clk 00:58:05]} {[%emt 00:00:10]} Rfe8 {[%clk
00:45:42]} {[%emt 00:01:52]} 18. Rae1 {[%clk 00:56:19]} {[%emt 00:02:15]} c5
{[%clk 00:42:56]} {[%emt 00:03:17]} 19. bxc5 {[%clk 00:35:11]} {[%emt
00:21:38]} Nxc5 {[%clk 00:43:09]} {[%emt 00:00:17]} 20. Bb5 {[%clk 00:31:35]}
{[%emt 00:04:06]} Rec8 {[%clk 00:41:50]} {[%emt 00:01:48]} 21. Nxc5 {[%clk
00:16:36]} {[%emt 00:15:29]} Qxc5 {[%clk 00:42:00]} {[%emt 00:00:21]} 22. Bd3
{[%clk 00:17:00]} {[%emt 00:00:06]} Qxa3 {[%clk 00:41:06]} {[%emt 00:01:24]} 23.
f4 {[%clk 00:15:16]} {[%emt 00:02:13]} Qc5+ {[%clk 00:40:02]} {[%emt 00:01:34]}
24. Kh1 {[%clk 00:15:35]} {[%emt 00:00:12]} Re8 {[%clk 00:38:49]} {[%emt
00:01:43]} 25. f5 {[%clk 00:11:53]} {[%emt 00:04:12]} Bd7 {[%clk 00:38:51]}
{[%emt 00:00:27]} 26. Qg4 {[%clk 00:11:10]} {[%emt 00:01:12]} Rxe1 {[%clk
00:39:01]} {[%emt 00:00:22]} 27. Rxe1 {[%clk 00:11:31]} {[%emt 00:00:08]} Re8
{[%clk 00:37:55]} {[%emt 00:01:37]} 28. Rxe8+ {[%clk 00:11:35]} {[%emt
00:00:26]} Bxe8 {[%clk 00:38:21]} {[%emt 00:00:04]} 29. f6 {[%clk 00:11:45]}
{[%emt 00:00:19]} g6 {[%clk 00:38:13]} {[%emt 00:00:38]} 30. Qg5 {[%clk
00:11:53]} {[%emt 00:00:21]} Qb6 {[%clk 00:37:06]} {[%emt 00:01:40]} 31. h4
{[%clk 00:11:42]} {[%emt 00:00:39]} Qb1+ {[%clk 00:35:27]} {[%emt 00:02:09]} 32.
Kh2 {[%clk 00:12:04]} {[%emt 00:00:08]} Qb8+ {[%clk 00:35:41]} {[%emt
00:00:17]} 33. g3 {[%clk 00:12:05]} {[%emt 00:00:28]} Qd6 {[%clk 00:35:34]}
{[%emt 00:00:37]} 34. h5 {[%clk 00:10:54]} {[%emt 00:01:41]} h6 {[%clk
00:33:25]} {[%emt 00:02:40]} 35. Qe3 {[%clk 00:09:30]} {[%emt 00:01:53]} Qe6
{[%clk 00:32:26]} {[%emt 00:01:30]} 36. Qxe6 {[%clk 00:09:46]} {[%emt
00:00:14]} fxe6 {[%clk 00:32:47]} {[%emt 00:00:09]} 37. hxg6 {[%clk 00:10:14]}
{[%emt 00:00:01]} Kf8 {[%clk 00:31:33]} {[%emt 00:01:44]} 38. Kh3 {[%clk
00:10:11]} {[%emt 00:00:34]} e5 {[%clk 00:30:19]} {[%emt 00:01:45]} 39. Bf5
{[%clk 00:10:30]} {[%emt 00:00:09]} e4 {[%clk 00:28:13]} {[%emt 00:02:37]} 40.
g7+ {[%clk 00:04:23]} {[%emt 00:06:37]} Kg8 {[%clk 00:28:28]} {[%emt 00:00:14]}
41. c4 {[%clk 00:02:18]} {[%emt 00:02:36]} dxc4 {[%clk 00:27:16]} {[%emt
00:01:42]} 42. Bxe4 {[%clk 00:02:37]} {[%emt 00:00:10]} a5 {[%clk 00:27:35]}
{[%emt 00:00:12]} 43. Kg4 {[%clk 00:01:03]} {[%emt 00:02:04]} c3 {[%clk
00:27:35]} {[%emt 00:00:31]} 44. Kf5 {[%clk 00:01:12]} {[%emt 00:00:20]} a4
{[%clk 00:27:36]} {[%emt 00:00:30]} 45. Ke6 {[%clk 00:01:29]} {[%emt 00:00:13]}
Bf7+ {[%clk 00:26:56]} {[%emt 00:01:10]} 46. Ke7 {[%clk 00:01:57]} {[%emt
00:00:02]} Bb3 {[%clk 00:26:34]} {[%emt 00:00:52]} 47. Bh7+ {[%clk 00:01:37]}
{[%emt 00:00:50]} Kxh7 {[%emt 00:00:03]} 48. f7 {[%clk 00:01:57]} {[%emt
00:00:09]} Kxg7 {[%clk 00:27:22]} {[%emt 00:00:10]} 49. f8=Q {[%clk 00:02:20]}
{[%emt 00:00:07]} Kg6 {[%clk 00:26:50]} {[%emt 00:01:01]} 50. Qf6+ {[%clk
00:02:43]} {[%emt 00:00:07]} Kh5 {[%clk 00:27:06]} {[%emt 00:00:14]} 51. Qxc3
{[%clk 00:03:09]} {[%emt 00:00:05]} Kg4 {[%clk 00:27:05]} {[%emt 00:00:31]} 52.
Kf6 {[%clk 00:03:32]} {[%emt 00:00:05]} h5 {[%clk 00:27:19]} {[%emt 00:00:17]}
53. Qe3 {[%clk 00:03:50]} {[%emt 00:00:12]} Kh3 {[%clk 00:27:13]} {[%emt
00:00:37]} 54. Kg5 {[%clk 00:04:11]} {[%emt 00:00:08]} Bd1 {[%clk 00:27:24]}
{[%emt 00:00:19]} 55. Kf4 {[%clk 00:03:49]} {[%emt 00:00:51]} Bb3 {[%clk
00:25:59]} {[%emt 00:01:57]} 56. g4+ {[%clk 00:03:51]} {[%emt 00:00:28]} Kh2
{[%clk 00:25:52]} {[%emt 00:00:36]} 57. Qf2+ {[%clk 00:04:10]} {[%emt
00:00:11]} Kh1 {[%clk 00:26:10]} {[%emt 00:00:13]} 58. Kg3 {[%clk 00:04:18]}
{[%emt 00:00:19]} h4+ {[%clk 00:26:25]} {[%emt 00:00:18]} 59. Kh3 {[%clk
00:04:42]} {[%emt 00:00:05]} Bc4 {[%clk 00:25:28]} {[%emt 00:01:28]} 60. Qh2#
{[%emt 00:01:10]} 1-0